fUSD/lending_fUSD_20260421
["ID","MTS","AMOUNT","RATE_DAILY","PERIOD"]
[420940513,1776761446960,-1530.897177,0.0001176,2]
[420940514,1776761446970,-160.0,0.0001176,2]
[420940515,1776761446979,-1134.656406,0.0001176,2]
[420940516,1776761446988,-2109.312813,0.0001176,2]
[420940517,1776761446998,-160.0,0.0001176,2]
[420940518,1776761447007,-235.01492,0.0001176,2]
[420940519,1776761447016,-310.02984,0.0001176,2]
[420940520,1776761447026,-160.0,0.0001176,2]
[420940521,1776761447035,-1120.77577,0.0001176,2]
[420940522,1776761447045,-2081.551541,0.0001176,2]
[420940523,1776761447054,-332.33,0.00011768,2]
[420940524,1776761447064,-247.154419,0.00011803,2]
[420940525,1776761447074,-247.154419,0.00011803,2]
[420940526,1776761447083,-247.154419,0.00011803,2]
[420940527,1776761447093,-247.154419,0.00011803,2]
[420940528,1776761447103,-151.0,0.00011856,2]
[420940529,1776761447112,-151.0,0.00011856,2]
[420940530,1776761447122,-196.463248,0.00011856,2]
[420940531,1776761447131,-498.66,0.00011862,2]
[420940532,1776761447141,-151.0,0.000119,2]
[420940533,1776761447151,-151.0,0.000119,2]
[420940534,1776761447160,-198.325283,0.000119,2]
[420940535,1776761447170,-151.0,0.000119,2]
[420940536,1776761447180,-2228.0,0.000119,2]
[420940537,1776761447189,-200.0,0.00011903,2]
[420940538,1776761447199,-200.0,0.00011904,2]
[420940539,1776761447209,-250.0,0.00011912,2]
[420940540,1776761447218,-179.22,0.00011954,2]
[420940541,1776761447228,-418.19,0.00011988,2]
[420940542,1776761447237,-210.41077155,0.0001199,2]
[420940543,1776761447248,-300.0,0.00011999,2]
[420940544,1776761447258,-300.0,0.00011999,2]
[420940545,1776761447267,-300.0,0.00011999,2]
[420940546,1776761447276,-343252.57868132,0.00012,2]
[420940572,1776762087748,-1200.0,9.101e-05,2]
[420940573,1776762087770,-300.0,9.101e-05,2]
[420940574,1776762087792,-2500.0,9.187e-05,2]
[420940575,1776762087815,-176.24,9.242e-05,2]
[420940576,1776762087841,-501.63006459,9.263e-05,2]
[420940577,1776762087864,-157.64690246,9.263e-05,2]
[420940578,1776762088337,-500.34107115,9.263e-05,2]
[420940579,1776762088360,-500.0,9.263e-05,2]
[420940580,1776762088381,-500.0,9.263e-05,2]
[420940581,1776762088403,-500.0,9.263e-05,2]
[420940582,1776762088424,-171.31417741,9.263e-05,2]
[420940583,1776762088445,-501.2224428,9.263e-05,2]
[420940584,1776762088467,-634.57042281,9.263e-05,2]
[420940585,1776762088487,-500.0,9.263e-05,2]
[420940586,1776762088508,-500.0,9.263e-05,2]
[420940587,1776762088530,-500.0,9.263e-05,2]
[420940588,1776762088552,-357.03491878,9.286e-05,2]
[420940589,1776762090365,-142.96508122,9.286e-05,2]
[420940590,1776762090386,-458.62810091,9.286e-05,2]
[420940591,1776762090408,-500.0,9.286e-05,2]
[420940592,1776762090435,-500.0,9.286e-05,2]
[420940593,1776762090461,-500.0,9.286e-05,2]
[420940594,1776762090488,-500.0,9.286e-05,2]
[420940595,1776762090515,-500.0,9.286e-05,2]
[420940596,1776762090543,-500.0,9.286e-05,2]
[420940597,1776762090570,-500.0,9.286e-05,2]
[420940598,1776762090598,-500.0,9.286e-05,2]
[420940599,1776762090625,-500.0,9.286e-05,2]
[420940600,1776762090653,-500.0,9.286e-05,2]
[420940601,1776762090683,-351.47544778,9.286e-05,2]
[420940602,1776762090706,-500.0,9.286e-05,2]
[420940603,1776762090729,-183.87819375,9.286e-05,2]
[420940604,1776762090757,-500.0,9.286e-05,2]
[420940605,1776762091377,-500.0,9.286e-05,2]
[420940606,1776762091400,-542.53299788,9.286e-05,2]
[420940607,1776762091443,-500.0,9.286e-05,2]
[420940608,1776762091466,-500.0,9.286e-05,2]
[420940609,1776762091489,-599.76509777,9.286e-05,2]
[420940610,1776762091519,-220.75508069,9.286e-05,2]
[420940611,1776762092565,-279.24491931,9.286e-05,2]
[420940612,1776762092595,-500.0,9.286e-05,2]
[420940613,1776762092626,-500.0,9.286e-05,2]
[420940614,1776762092656,-500.0,9.286e-05,2]
[420940615,1776762092687,-500.0,9.286e-05,2]
[420940616,1776762092719,-601.5,9.286e-05,2]
[420940617,1776762092749,-500.0,9.286e-05,2]
[420940618,1776762092778,-500.0,9.286e-05,2]
[420940619,1776762092807,-500.0,9.286e-05,2]
[420940620,1776762092836,-500.0,9.286e-05,2]
[420940621,1776762092866,-500.0,9.286e-05,2]
[420940622,1776762092895,-500.0,9.286e-05,2]
[420940623,1776762092922,-4119.25508069,9.287e-05,2]
[420940625,1776762094699,-5313.206,9.102e-05,2]
[420940626,1776762094722,-360.097,9.102e-05,2]
[420940627,1776762094749,-4326.697,9.287e-05,2]
[420940628,1776762095892,-10000.0,9.287e-05,2]
[420940629,1776762096904,-10000.0,9.287e-05,2]
[420940630,1776762105560,-7339.0,9.287e-05,2]
[420940632,1776762129106,-213.0,9.287e-05,3]
[420940633,1776762129141,-9787.0,9.287e-05,2]
[420940634,1776762130908,-10000.0,9.287e-05,2]
[420940635,1776762132123,-10000.0,9.287e-05,2]
[420940636,1776762133265,-157.0,9.287e-05,3]
[420940637,1776762133302,-9843.0,9.287e-05,2]
[420940638,1776762134396,-10000.0,9.287e-05,2]
[420940640,1776762138909,-10000.0,9.287e-05,2]
[420940641,1776762140222,-10000.0,9.287e-05,2]
[420940642,1776762141645,-10000.0,9.287e-05,2]
[420940643,1776762146755,-6190.0,9.287e-05,2]
[420940646,1776762631795,-500.0,9.186e-05,2]
[420940647,1776762631806,-182.76355463,9.186e-05,2]
[420940648,1776762631815,-267.05976804,9.186e-05,2]
[420940649,1776762631825,-500.0,9.186e-05,2]
[420940650,1776762631835,-500.0,9.186e-05,2]
[420940651,1776762631845,-569.14244638,9.186e-05,2]
[420940652,1776762631855,-414.07728344,9.186e-05,2]
[420940653,1776762631864,-500.0,9.186e-05,2]
[420940654,1776762631874,-500.0,9.186e-05,2]
[420940655,1776762631884,-500.0,9.186e-05,2]
[420940656,1776762631894,-570.63270809,9.186e-05,2]
[420940657,1776762631904,-500.0,9.186e-05,2]
[420940658,1776762631914,-500.0,9.186e-05,2]
[420940659,1776762631924,-6678.0094,9.187e-05,2]
[420940660,1776762631933,-3240.42,9.187e-05,2]
[420940661,1776762631943,-3196.34969081,9.187e-05,2]
[420940662,1776762631955,-478.07357,9.187e-05,2]
[420940663,1776762631968,-7640.8,9.187e-05,2]
[420940664,1776762631984,-146380.11922696,9.187e-05,2]
[420940665,1776762631995,-503.70314734,9.187e-05,2]
[420940666,1776762632024,-4230.82512797,9.187e-05,2]
[420940667,1776762632047,-711.97223889,9.187e-05,2]
[420940686,1776762638328,-700.94563,9.187e-05,2]
[420940687,1776762638340,-42936.31690011,9.187e-05,2]
[420940688,1776762638352,-1116.32649408,9.187e-05,2]
[420940689,1776762638382,-7643.6345858,9.187e-05,2]
[420940700,1776762640268,-1415.41620489,9.187e-05,2]
[420940701,1776762640374,-2239.62389892,9.187e-05,2]
[420940702,1776762640428,-2742.37269276,9.187e-05,2]
[420940703,1776762641093,-1.28778066,9.187e-05,2]
[420940704,1776762641113,-554.59764202,9.187e-05,2]
[420940705,1776762641124,-875.50000001,9.187e-05,2]
[420940712,1776762642950,-5092.73108683,9.187e-05,2]
[420940713,1776762643007,-1444.01541444,9.187e-05,2]
[420940714,1776762643019,-934.97489855,9.187e-05,2]
[420940779,1776762647713,-1761.42095698,9.187e-05,2]
[420940780,1776762647733,-6181.99337938,9.187e-05,2]
[420940781,1776762647745,-3738.40000069,9.187e-05,2]
[420940782,1776762647756,-903.39663765,9.187e-05,2]
[420940783,1776762647775,-12430.712656,9.187e-05,2]
[420940784,1776762647794,-1065.32192759,9.187e-05,2]
[420940805,1776763539490,1600.0,8.081e-05,2]
[420940806,1776763616857,8400.01,8.072e-05,2]
[420940807,1776763616879,1480.01,8.072e-05,2]
[420940808,1776763807746,621.06,7.991e-05,2]
[420940810,1776763832008,-1200.0,8.259e-05,2]
[420940811,1776763832018,-226.0,8.259e-05,2]
[420940812,1776763832029,-257.0,8.259e-05,2]
[420940813,1776763832039,-295.81113504,8.26e-05,2]
[420940814,1776763832049,-150.0,8.26e-05,2]
[420940815,1776763832059,-150.0,8.26e-05,2]
[420940816,1776763832068,-8.70563822,8.26e-05,2]
[420940817,1776763832081,-141.29436178,8.26e-05,2]
[420940818,1776763832092,-150.0,8.26e-05,2]
[420940819,1776763832102,-150.0,8.26e-05,2]
[420940820,1776763832113,-30.55168469,8.26e-05,2]
[420940821,1776763832126,-119.44831531,8.26e-05,2]
[420940822,1776763832136,-150.0,8.26e-05,2]
[420940823,1776763832145,-34.27871421,8.26e-05,2]
[420940824,1776763832157,-115.72128579,8.26e-05,2]
[420940825,1776763832167,-150.0,8.344e-05,2]
[420940826,1776763832177,-150.0,8.359e-05,2]
[420940827,1776763832186,-150.0,8.427e-05,2]
[420940828,1776763832196,-150.0,8.511e-05,2]
[420940829,1776763832205,-150.0,8.594e-05,2]
[420940830,1776763832215,-150.0,8.677e-05,2]
[420940831,1776763832225,-2000.0,8.719e-05,2]
[420940832,1776763832234,-150.0,8.761e-05,2]
[420940833,1776763832244,-150.0,8.823e-05,2]
[420940834,1776763832254,-150.0,8.844e-05,2]
[420940835,1776763832263,-158.25,8.863e-05,2]
[420940836,1776763832273,-154.73024531,8.9e-05,3]
[420940837,1776763832291,-45.26975469,8.9e-05,3]
[420940839,1776763832303,-150.0,8.928e-05,2]
[420940840,1776763832313,-396.3022,8.987e-05,2]
[420940841,1776763832322,-226.85376843,9e-05,3]
[420940842,1776763832344,-173.14623157,9e-05,3]
[420940844,1776763832354,-150.0,9.011e-05,2]
[420940846,1776763832364,-134.80976843,9.062e-05,2]
[420940849,1776763832386,-15.19023157,9.062e-05,2]
[420940851,1776763832396,-234.80976843,9.063e-05,2]
[420940854,1776763832408,-265.19023157,9.063e-05,2]
[420940856,1776763832419,-500.0,9.063e-05,2]
[420940858,1776763832429,-500.0,9.063e-05,2]
[420940860,1776763832439,-500.0,9.063e-05,2]
[420940862,1776763832448,-500.0,9.063e-05,2]
[420940864,1776763832458,-500.0,9.063e-05,2]
[420940866,1776763832467,-500.44215231,9.063e-05,2]
[420940868,1776763832477,-500.0,9.063e-05,2]
[420940870,1776763832487,-5310.76,9.068e-05,2]
[420940872,1776763832497,-818.6,9.081e-05,2]
[420940874,1776763832506,-151.0,9.084e-05,2]
[420940876,1776763832516,-250.0,9.085e-05,2]
[420940878,1776763832526,-480.0,9.085e-05,2]
[420940880,1776763832536,-17480.92772058,9.086e-05,2]
[420940882,1776763832548,-300.0,9.086e-05,2]
[420940885,1776763832558,-250.0,9.086e-05,2]
[420940887,1776763832568,-5000.0,9.086e-05,2]
[420940889,1776763832577,-502.74187909,9.086e-05,2]
[420940891,1776763832587,-180.26361442,9.086e-05,2]
[420940893,1776763832596,-300.0,9.086e-05,2]
[420940895,1776763832606,-345.21517042,9.086e-05,2]
[420940897,1776763832616,-500.0,9.086e-05,2]
[420940899,1776763832626,-500.0,9.086e-05,2]
[420940901,1776763832635,-500.0,9.086e-05,2]
[420940903,1776763832645,-325.28314214,9.086e-05,2]
[420940905,1776763832655,-500.0,9.086e-05,2]
[420940906,1776763832665,-500.0,9.086e-05,2]
[420940907,1776763832674,-241.65061929,9.086e-05,2]
[420940908,1776763832690,-167.2784483,9.086e-05,2]
[420940909,1776763832700,-186.57983023,9.086e-05,2]
[420940910,1776763832710,-150.0,9.086e-05,2]
[420940911,1776763832720,-710674.99556086,9.087e-05,2]
[420940912,1776763832733,-1251.8382809,9.087e-05,2]
[420940913,1776763832746,-1363.9028499,9.087e-05,2]
[420940914,1776763832762,-673.97872682,9.087e-05,2]
[420940915,1776763832774,-1248.86929294,9.087e-05,2]
[420940916,1776763832787,-3058.63601826,9.087e-05,2]
[420940917,1776763832799,-8644.86836957,9.087e-05,2]
[420940918,1776763832812,-393.653476,9.087e-05,2]
[420940919,1776763832824,-464.72178409,9.087e-05,2]
[420940924,1776763838218,-999.54,9.087e-05,2]
[420940925,1776763838230,-485.18762081,9.087e-05,2]
[420940926,1776763838278,-1221.80961954,9.087e-05,2]
[420940927,1776763838290,-5262.04689355,9.087e-05,2]
[420940928,1776763838302,-23155.3758884,9.087e-05,2]
[420940929,1776763838443,-35242.81480696,9.087e-05,2]
[420940930,1776763838455,-1820.4382,9.087e-05,2]
[420940931,1776763838467,-75887.62771607,9.087e-05,2]
[420940932,1776763838478,-48993.48432967,9.087e-05,2]
[420940933,1776763838490,-1826.1386616,9.087e-05,2]
[420940977,1776763840535,-15497.97035719,9.087e-05,2]
[420940978,1776763840548,-13141.12926979,9.087e-05,2]
[420940979,1776763840560,-3963.85509281,9.087e-05,2]
[420940980,1776763840591,-876.87865572,9.087e-05,2]
[420940981,1776763840702,-13115.82671677,9.087e-05,2]
[420940982,1776763840714,-14029.80278619,9.087e-05,2]
[420940997,1776763843221,-1114.91365607,9.087e-05,2]
[420940998,1776763843393,-451.67652715,9.087e-05,2]
[420941002,1776763846317,-3447.19052916,9.087e-05,2]
[420941007,1776764022229,5110.57,8.221e-05,2]
[420941008,1776764045807,202.0,8.221e-05,3]
[420941009,1776764106385,192.0,8.221e-05,3]
[420941010,1776764110304,156.0,8.221e-05,3]
[420941011,1776764173663,182.0,8.221e-05,3]
[420941012,1776764182960,150.0,0.00016226,30]
[420941013,1776764182991,150.0,0.00016226,30]
[420941014,1776764183032,150.0,0.00016226,30]
[420941015,1776764183067,150.0,0.00016226,30]
[420941016,1776764183143,210.23455428,0.00016226,30]
[420941017,1776764228487,173.0,8.221e-05,3]
[420941019,1776764287321,164.0,8.221e-05,3]
[420941020,1776764348395,156.0,8.221e-05,3]
[420941021,1776764411503,156.0,8.221e-05,3]
[420941022,1776764411559,156.0,8.221e-05,3]
[420941023,1776764467935,156.0,8.221e-05,3]
[420941024,1776764525655,157.0,8.221e-05,3]
[420941025,1776764587107,157.0,8.221e-05,3]
[420941026,1776764647169,157.0,8.221e-05,3]
[420941027,1776764702890,150.0,8.088e-05,2]
[420941028,1776764705834,157.0,8.221e-05,3]
[420941029,1776764707610,156.0,8.221e-05,3]
[420941030,1776764713100,150.0,8.094e-05,2]
[420941031,1776764716852,150.0,8.088e-05,2]
[420941032,1776764720326,151.70461561,8.088e-05,2]
[420941033,1776764720377,150.00000001,8.088e-05,2]
[420941034,1776764726563,150.00000001,8.088e-05,2]
[420941035,1776764730905,150.0,8.088e-05,2]
[420941036,1776764735571,150.0,8.088e-05,2]
[420941037,1776764736033,150.0,8.088e-05,2]
[420941038,1776764828724,157.0,8.221e-05,3]
[420941039,1776764887282,157.0,8.221e-05,3]
[420941040,1776764948330,157.0,8.221e-05,3]
[420941041,1776765012015,156.0,8.221e-05,3]
[420941042,1776765012377,157.0,8.221e-05,3]
[420941043,1776765017961,150.0,7.997e-05,2]
[420941047,1776765032192,-300.0,8.244e-05,2]
[420941048,1776765032202,-78.35139607,8.244e-05,2]
[420941049,1776765032245,-1121.64860393,8.244e-05,2]
[420941050,1776765032255,-300.0,8.244e-05,2]
[420941051,1776765032265,-9.01771045,8.244e-05,2]
[420941052,1776765032406,-1190.98228955,8.244e-05,2]
[420941053,1776765032416,-300.0,8.244e-05,2]
[420941054,1776765032430,-250.0,8.244e-05,2]
[420941055,1776765032440,-5883.01771045,8.245e-05,2]
[420941056,1776765032466,-4971.61228955,8.245e-05,2]
[420941057,1776765032476,-300.0,8.295e-05,2]
[420941058,1776765032487,-250.0,8.322e-05,2]
[420941059,1776765032497,-881.46,8.345e-05,2]
[420941060,1776765032511,-200.0,8.8e-05,3]
[420941061,1776765032522,-13005.4863,8.886e-05,2]
[420941062,1776765032532,-2500.0,8.887e-05,2]
[420941063,1776765032543,-500.0,8.887e-05,2]
[420941064,1776765032553,-300.0,8.887e-05,2]
[420941065,1776765032563,-230.2547,8.9e-05,2]
[420941067,1776765032575,-400.0,8.9e-05,3]
[420941068,1776765032585,-150.0,8.904e-05,2]
[420941069,1776765032595,-150.0,8.904e-05,2]
[420941070,1776765032605,-150.0,8.962e-05,2]
[420941071,1776765032615,-500.0,8.963e-05,2]
[420941072,1776765032625,-500.0,8.963e-05,2]
[420941073,1776765032636,-164.66456417,8.963e-05,2]
[420941074,1776765032646,-305.68024841,8.963e-05,2]
[420941075,1776765032656,-500.0,8.963e-05,2]
[420941076,1776765032666,-501.72292527,8.963e-05,2]
[420941077,1776765032676,-500.10249107,8.963e-05,2]
[420941078,1776765032686,-426.34552092,8.963e-05,2]
[420941079,1776765032696,-500.0,8.963e-05,2]
[420941080,1776765032705,-4999.99,8.985e-05,2]
[420941081,1776765032716,-256.17,8.986e-05,2]
[420941082,1776765032726,-155.362,8.986e-05,2]
[420941083,1776765032735,-150.0,8.986e-05,2]
[420941084,1776765032745,-500.0,8.986e-05,2]
[420941085,1776765032755,-299.99,8.986e-05,2]
[420941086,1776765032764,-299.41,8.986e-05,2]
[420941087,1776765032774,-6193.85,8.986e-05,2]
[420941088,1776765032784,-9999.99,8.986e-05,2]
[420941089,1776765032794,-9999.99,8.986e-05,2]
[420941090,1776765032804,-9999.99,8.986e-05,2]
[420941091,1776765032813,-150.99,8.986e-05,2]
[420941092,1776765032824,-24999.99,8.986e-05,2]
[420941093,1776765032834,-518.99,8.986e-05,2]
[420941094,1776765032846,-157.81013456,8.986e-05,2]
[420941095,1776765032856,-500.0,8.986e-05,2]
[420941096,1776765032866,-211.93830588,8.986e-05,2]
[420941097,1776765032876,-500.0,8.986e-05,2]
[420941098,1776765032886,-500.0,8.986e-05,2]
[420941099,1776765032899,-500.0,8.986e-05,2]
[420941100,1776765032909,-500.0,8.986e-05,2]
[420941101,1776765032919,-500.0,8.986e-05,2]
[420941102,1776765032929,-500.0,8.986e-05,2]
[420941103,1776765032939,-500.0,8.986e-05,2]
[420941104,1776765032949,-500.0,8.986e-05,2]
[420941105,1776765032959,-500.0,8.986e-05,2]
[420941106,1776765032969,-500.0,8.986e-05,2]
[420941107,1776765032979,-209.93359374,8.986e-05,2]
[420941108,1776765032991,-500.0,8.986e-05,2]
[420941109,1776765033001,-500.0,8.986e-05,2]
[420941110,1776765033011,-500.0,8.986e-05,2]
[420941111,1776765033021,-500.0,8.986e-05,2]
[420941112,1776765033031,-500.0,8.986e-05,2]
[420941113,1776765033041,-342.1863138,8.986e-05,2]
[420941114,1776765033051,-500.0,8.986e-05,2]
[420941115,1776765033061,-500.0,8.986e-05,2]
[420941116,1776765033071,-500.0,8.986e-05,2]
[420941117,1776765033081,-573.23875347,8.986e-05,2]
[420941118,1776765033091,-150.0,8.986e-05,2]
[420941119,1776765033101,-150.0,8.986e-05,2]
[420941120,1776765033111,-513.30614449,8.986e-05,2]
[420941121,1776765033121,-150.0,8.986e-05,2]
[420941122,1776765033131,-150.0,8.986e-05,2]
[420941123,1776765033141,-6180.75,8.987e-05,2]
[420941124,1776765033151,-433.468,8.987e-05,2]
[420941125,1776765033161,-150.0,8.987e-05,2]
[420941126,1776765033171,-127120.2141,8.987e-05,2]
[420941127,1776765033182,-222481.84047439,8.987e-05,2]
[420941128,1776765035307,-2134.0,8.987e-05,2]
[420941129,1776765035319,-18953.69085277,8.987e-05,2]
[420941130,1776765038433,-410.0850894,8.987e-05,2]
[420941131,1776765038592,-75887.62771607,8.987e-05,2]
[420941132,1776765038646,-317.0,8.987e-05,2]
[420941133,1776765038701,-3962.2502192,8.987e-05,2]
[420941134,1776765038714,-1175853.50564817,8.987e-05,2]
[420941135,1776765038724,-700.0,9e-05,3]
[420941136,1776765038734,-195.09,9.043e-05,2]
[420941137,1776765038743,-243.86,9.043e-05,2]
[420941138,1776765038752,-502.5176197,9.063e-05,2]
[420941139,1776765038762,-300.0,9.068e-05,2]
[420941140,1776765038771,-1200.0,9.068e-05,2]
[420941141,1776765038781,-420.0,9.068e-05,2]
[420941142,1776765038790,-1680.0,9.068e-05,2]
[420941143,1776765038800,-250.0,9.068e-05,2]
[420941144,1776765038810,-300.0,9.069e-05,2]
[420941145,1776765038819,-4605.1700681,9.069e-05,2]
[420941146,1776765038829,-151.0,9.084e-05,2]
[420941147,1776765038838,-16742.1066393,9.087e-05,2]
[420941148,1776765038848,-1859.6691031,9.087e-05,2]
[420941149,1776765038857,-1835.252153,9.087e-05,2]
[420941150,1776765038867,-3195.0194061,9.087e-05,2]
[420941151,1776765038876,-1600.0,9.091e-05,2]
[420941152,1776765038886,-151.0,9.139e-05,2]
[420941153,1776765038895,-151.0,9.139e-05,2]
[420941154,1776765038905,-151.0,9.139e-05,2]
[420941155,1776765038914,-699.615595,9.139e-05,2]
[420941156,1776765038924,-699.615595,9.139e-05,2]
[420941157,1776765038934,-699.615595,9.139e-05,2]
[420941158,1776765038943,-699.615595,9.139e-05,2]
[420941159,1776765038952,-151.0,9.139e-05,2]
[420941160,1776765038962,-341.640823,9.139e-05,2]
[420941161,1776765038972,-341.640823,9.139e-05,2]
[420941162,1776765038981,-341.640823,9.139e-05,2]
[420941163,1776765038991,-341.640823,9.139e-05,2]
[420941164,1776765039001,-115919.39,9.139e-05,2]
[420941165,1776765039011,-3886.55529313,9.179e-05,2]
[420941166,1776765039020,-300.0,9.179e-05,2]
[420941167,1776765039029,-2513.958806,9.179e-05,2]
[420941168,1776765039039,-195.52411365,9.179e-05,2]
[420941169,1776765039048,-151.0,9.183e-05,2]
[420941170,1776765039057,-570.35,9.222e-05,2]
[420941171,1776765039067,-256.17,9.26e-05,2]
[420941172,1776765039076,-24280.28167186,9.294e-05,2]
[420941174,1776765039085,-501.74123223,9.511e-05,2]
[420941176,1776765039094,-256.18,9.534e-05,2]
[420941178,1776765039104,-221.23,9.572e-05,2]
[420941180,1776765039113,-157.0,9.599e-05,3]
[420941182,1776765039123,-1162.28,9.76e-05,2]
[420941184,1776765039132,-1500.0,9.789e-05,2]
[420941186,1776765039142,-2000.0,9.809e-05,2]
[420941188,1776765039151,-351.39049223,9.82e-05,2]
[420941190,1776765039160,-255.0,9.858e-05,2]
[420941192,1776765039170,-155.0,9.885e-05,2]
[420941194,1776765039179,-587.0,9.975e-05,2]
[420941196,1776765039188,-2351.0,9.975e-05,2]
[420941198,1776765039198,-594.40886469,9.975e-05,2]
[420941200,1776765039207,-1087.64,0.0001,2]
[420941202,1776765039216,-150.17708714,0.0001,2]
[420941204,1776765039226,-150.87462827,0.0001,2]
[420941207,1776765039235,-175.58773982,0.0001,2]
[420941209,1776765039245,-231.9466024,0.0001,2]
[420941211,1776765039254,-217.70510738,0.0001,2]
[420941212,1776765039264,-226.80785792,0.0001,2]
[420941214,1776765039273,-199.25663911,0.0001,2]
[420941216,1776765039283,-280.09797998,0.0001,2]
[420941219,1776765039292,-297.61106902,0.0001,2]
[420941221,1776765039302,-307.67818308,0.0001,2]
[420941223,1776765039311,-217.00032421,0.0001,2]
[420941225,1776765039320,-203.2338541,0.0001,2]
[420941227,1776765039330,-151.0,0.0001,2]
[420941229,1776765039339,-151.0,0.0001,2]
[420941231,1776765039349,-151.0,0.0001,2]
[420941233,1776765039359,-151.0,0.0001,2]
[420941235,1776765039368,-151.0,0.0001,2]
[420941237,1776765039377,-151.0,0.0001,2]
[420941239,1776765039386,-151.0,0.0001,2]
[420941241,1776765039396,-151.0,0.0001,2]
[420941243,1776765039405,-151.0,0.0001,2]
[420941244,1776765039415,-151.0,0.0001,2]
[420941246,1776765039424,-151.0,0.0001,2]
[420941248,1776765039433,-151.31444593,0.0001,2]
[420941249,1776765039443,-809.80249979,0.0001,2]
[420941250,1776765039452,-341.0,0.00010025,5]
[420941251,1776765039461,-200.0,0.00010029,2]
[420941252,1776765039471,-332.33,0.00010044,2]
[420941253,1776765039480,-224.5423201,0.00010074,2]
[420941254,1776765039489,-1600.0,0.00010101,2]
[420941255,1776765039499,-161.32,0.00010127,2]
[420941256,1776765039509,-1611.66,0.00010138,2]
[420941257,1776765039518,-988.74,0.00010146,2]
[420941258,1776765039527,-1000.0,0.000102,2]
[420941259,1776765039537,-3735.6689356,0.00010239,2]
[420941260,1776765039546,-5000.0,0.00010341,2]
[420941261,1776765039556,-500.0,0.00010432,2]
[420941262,1776765039566,-170.72,0.00010442,2]
[420941263,1776765039575,-7499.18963501,0.00010486,2]
[420941264,1776765039585,-5000.0,0.00010486,2]
[420941265,1776765039594,-5000.0,0.00010486,2]
[420941266,1776765039604,-5000.0,0.00010486,2]
[420941267,1776765039613,-5000.0,0.00010486,2]
[420941268,1776765039623,-833.5404078,0.00010496,2]
[420941269,1776765039632,-159.0706496,0.00010496,2]
[420941270,1776765039642,-151.0,0.0001055,2]
[420941271,1776765039651,-151.0,0.0001055,2]
[420941272,1776765039661,-151.0,0.0001055,2]
[420941273,1776765039671,-699.615595,0.0001055,2]
[420941274,1776765039680,-699.615595,0.0001055,2]
[420941275,1776765039690,-699.615595,0.0001055,2]
[420941276,1776765039699,-699.615595,0.0001055,2]
[420941277,1776765039708,-192.074026,0.0001055,2]
[420941278,1776765039718,-341.640823,0.0001055,2]
[420941279,1776765039727,-341.640823,0.0001055,2]
[420941280,1776765039736,-341.640823,0.0001055,2]
[420941281,1776765039745,-341.640823,0.0001055,2]
[420941282,1776765039755,-1349.0,0.0001055,2]
[420941283,1776765039764,-622.0,0.0001055,2]
[420941284,1776765039773,-3530.0,0.0001055,2]
[420941285,1776765039783,-927.0,0.0001055,2]
[420941286,1776765039792,-1221.766,0.0001055,2]
[420941287,1776765039801,-150.134,0.0001055,2]
[420941288,1776765039811,-1265.0,0.0001055,2]
[420941289,1776765039820,-6031.0,0.0001055,2]
[420941290,1776765039830,-416.0,0.0001055,2]
[420941291,1776765039839,-242.0,0.00010562,5]
[420941292,1776765039849,-11765.29547345,0.0001069,3]
[420941293,1776765039859,-578.20924308,0.00010697,2]
[420941294,1776765039868,-1428.38747117,0.00010697,2]
[420941295,1776765039878,-721.12765535,0.00010697,2]
[420941296,1776765039888,-200.0,0.00010697,2]
[420941297,1776765039897,-380.987,0.00010697,2]
[420941298,1776765039907,-500.0,0.00010697,2]
[420941299,1776765039916,-174.61919141,0.00010697,2]
[420941300,1776765039926,-151.0,0.00010697,2]
[420941301,1776765039935,-279.9045709,0.00010697,2]
[420941302,1776765039944,-151.0,0.00010697,2]
[420941303,1776765039954,-32104.29253221,0.000107,2]
[420941304,1776765039963,-500.0,0.00010752,2]
[420941305,1776765039973,-151.0,0.00010752,2]
[420941306,1776765039983,-193.118318,0.00010753,2]